fUSD/lending_fUSD_20260610
["ID","MTS","AMOUNT","RATE_DAILY","PERIOD"]
[424666053,1781035900000,-471.783526,0.00035781,30]
[424666056,1781035900000,-560.342243,0.00035781,30]
[424666060,1781035900000,-544.22443,0.00035781,30]
[424666052,1781035900000,-279.64415,0.00035781,30]
[424666058,1781035900000,-242.15847,0.00035781,30]
[424666055,1781035900000,-242.15847,0.00035781,30]
[424666057,1781035900000,-151.0,0.00035781,30]
[424666054,1781035900000,-279.64415,0.00035781,30]
[424666059,1781035900000,-560.342243,0.00035781,30]
[424666063,1781035900000,-242.15847,0.00035781,30]
[424666061,1781035900000,-151.0,0.00035781,30]
[424666012,1781035900000,-2407.141392,0.00035616,30]
[424666064,1781035900000,-560.342243,0.00035781,30]
[424666065,1781035900000,-238.063995,0.00035781,30]
[424666066,1781035900000,-242.15847,0.00035781,30]
[424666045,1781035900000,-200.0,0.00035748,5]
[424666043,1781035900000,-187.5236579,0.00035741,30]
[424666062,1781035900000,-151.0,0.00035781,30]
[424666041,1781035900000,-2024.08,0.0003574,30]
[424666048,1781035900000,-471.783526,0.00035781,30]
[424666010,1781035900000,-1697.012534,0.00035616,30]
[424666018,1781035900000,-206.50834213,0.00035616,7]
[424666025,1781035900000,-726.0,0.00035681,11]
[424666017,1781035900000,-256.9210278,0.00035616,7]
[424666027,1781035900000,-68870.02059505,0.000357,120]
[424666020,1781035900000,-2371.06638376,0.00035647,7]
[424666019,1781035900000,-200.0,0.00035632,5]
[424666021,1781035900000,-187.5236579,0.00035648,30]
[424666024,1781035900000,-187.5236579,0.00035679,30]
[424666023,1781035900000,-495.14529561,0.00035671,120]
[424666022,1781035900000,-8572.59,0.00035656,2]
[424666007,1781035900000,-2407.141392,0.00035616,30]
[424666039,1781035900000,-3328.71,0.0003574,30]
[424666034,1781035900000,-153.357152,0.00035715,7]
[424666033,1781035900000,-187.5236579,0.0003571,30]
[424666037,1781035900000,-6465.8,0.0003574,30]
[424666032,1781035900000,-1028.83,0.00035707,120]
[424666029,1781035900000,-200.0,0.00035703,2]
[424666036,1781035900000,-2371.06638376,0.00035737,7]
[424666031,1781035900000,-200.0,0.00035703,2]
[424666035,1781035900000,-158.1996145,0.00035719,2]
[424666030,1781035900000,-200.0,0.00035703,2]
[424666028,1781035900000,-200.0,0.00035701,60]
[424666038,1781035900000,-2024.08,0.0003574,30]
[424666096,1781035901000,-879.745412,0.00035781,30]
[424666110,1781035901000,-697.273368,0.00035781,30]
[424666095,1781035901000,-388.607731,0.00035781,30]
[424666091,1781035901000,-261.725961,0.00035781,30]
[424666093,1781035901000,-879.745412,0.00035781,30]
[424666092,1781035901000,-388.607731,0.00035781,30]
[424666090,1781035901000,-879.745412,0.00035781,30]
[424666094,1781035901000,-151.0,0.00035781,30]
[424666100,1781035901000,-521.049182,0.00035781,30]
[424666105,1781035901000,-810.515854,0.00035781,30]
[424666101,1781035901000,-521.049182,0.00035781,30]
[424666102,1781035901000,-521.049182,0.00035781,30]
[424666103,1781035901000,-521.049182,0.00035781,30]
[424666107,1781035901000,-810.515854,0.00035781,30]
[424666104,1781035901000,-810.515854,0.00035781,30]
[424666109,1781035901000,-697.273368,0.00035781,30]
[424666108,1781035901000,-697.273368,0.00035781,30]
[424666106,1781035901000,-810.515854,0.00035781,30]
[424666087,1781035901000,-151.0,0.00035781,30]
[424666099,1781035901000,-388.607731,0.00035781,30]
[424666098,1781035901000,-879.745412,0.00035781,30]
[424666076,1781035901000,-446.571195,0.00035781,30]
[424666097,1781035901000,-388.607731,0.00035781,30]
[424666111,1781035901000,-697.273368,0.00035781,30]
[424666067,1781035901000,-986.019494,0.00035781,30]
[424666068,1781035901000,-742.97351,0.00035781,30]
[424666070,1781035901000,-446.571195,0.00035781,30]
[424666069,1781035901000,-560.342243,0.00035781,30]
[424666072,1781035901000,-544.22443,0.00035781,30]
[424666071,1781035901000,-986.019494,0.00035781,30]
[424666073,1781035901000,-1554.477312,0.00035781,30]
[424666075,1781035901000,-151.0,0.00035781,30]
[424666088,1781035901000,-446.571195,0.00035781,30]
[424666085,1781035901000,-1554.477312,0.00035781,30]
[424666079,1781035901000,-1554.477312,0.00035781,30]
[424666082,1781035901000,-446.571195,0.00035781,30]
[424666078,1781035901000,-544.22443,0.00035781,30]
[424666077,1781035901000,-986.019494,0.00035781,30]
[424666080,1781035901000,-742.97351,0.00035781,30]
[424666084,1781035901000,-544.22443,0.00035781,30]
[424666081,1781035901000,-151.0,0.00035781,30]
[424666083,1781035901000,-986.019494,0.00035781,30]
[424666086,1781035901000,-742.97351,0.00035781,30]
[424666074,1781035901000,-742.97351,0.00035781,30]
[424666112,1781035901000,-1429.7348,0.00035781,2]
[424666089,1781035901000,-1554.477312,0.00035781,30]
[424666116,1781035901000,-6238.0,0.000358,120]
[424666139,1781035901000,-500.0,0.000358,14]
[424666138,1781035901000,-500.0,0.000358,14]
[424666142,1781035901000,-209.0290413,0.00035813,120]
[424666141,1781035901000,-187.5236579,0.00035803,30]
[424666143,1781035901000,-1104.9,0.00035816,7]
[424666137,1781035901000,-500.0,0.000358,14]
[424666144,1781035901000,-700.0,0.00035822,60]
[424666146,1781035901000,-187.5236579,0.00035835,30]
[424666145,1781035901000,-500.0,0.00035822,60]
[424666140,1781035901000,-392.1,0.000358,14]
[424666147,1781035901000,-151.0,0.00035837,14]
[424666150,1781035901000,-666.0,0.00035839,30]
[424666152,1781035901000,-300.0,0.00035839,10]
[424666151,1781035901000,-300.0,0.00035839,10]
[424666155,1781035901000,-300.0,0.00035839,10]
[424666154,1781035901000,-300.0,0.00035839,10]
[424666153,1781035901000,-300.0,0.00035839,10]
[424666156,1781035901000,-300.0,0.00035839,10]
[424666158,1781035901000,-1385768.50274465,0.0003584,8]
[424666114,1781035901000,-152.0,0.00035792,14]
[424666148,1781035901000,-532.45040351,0.00035839,7]
[424666136,1781035901000,-500.0,0.000358,14]
[424666149,1781035901000,-300.0,0.00035839,10]
[424666132,1781035901000,-500.0,0.000358,14]
[424666113,1781035901000,-8572.59,0.00035781,2]
[424666115,1781035901000,-1000.0,0.000358,30]
[424666118,1781035901000,-500.0,0.000358,14]
[424666117,1781035901000,-500.0,0.000358,14]
[424666121,1781035901000,-500.0,0.000358,14]
[424666119,1781035901000,-500.0,0.000358,14]
[424666120,1781035901000,-500.0,0.000358,14]
[424666124,1781035901000,-500.0,0.000358,14]
[424666157,1781035901000,-666.0,0.00035839,30]
[424666122,1781035901000,-500.0,0.000358,14]
[424666123,1781035901000,-500.0,0.000358,14]
[424666134,1781035901000,-500.0,0.000358,14]
[424666125,1781035901000,-500.0,0.000358,14]
[424666128,1781035901000,-500.0,0.000358,14]
[424666129,1781035901000,-500.0,0.000358,14]
[424666126,1781035901000,-500.0,0.000358,14]
[424666127,1781035901000,-500.0,0.000358,14]
[424666130,1781035901000,-500.0,0.000358,14]
[424666133,1781035901000,-500.0,0.000358,14]
[424666131,1781035901000,-500.0,0.000358,14]
[424666135,1781035901000,-500.0,0.000358,14]
[424666159,1781035903000,157.0,0.00030137,120]
[424666160,1781035904000,-160.0,7.906e-05,2]
[424666161,1781035904000,-876.65328089,9.57e-05,2]
[424666164,1781035904000,-13582.90824072,0.00027397,10]
[424666165,1781035904000,-784.87246279,0.00027397,10]
[424666163,1781035904000,-419.0,0.00019618,2]
[424666162,1781035904000,-1123.34671911,9.57e-05,2]
[424666168,1781035905000,432.670512,0.00029645,120]
[424666167,1781035905000,13.36116543,6.552e-05,2]
[424666166,1781035905000,136.63883457,6.552e-05,2]
[424666172,1781036216000,888.72,0.00030136,120]
[424666175,1781036293000,234.61116543,7.352e-05,7]
[424666220,1781037031000,-72.64967568,7.478e-05,2]
[424666219,1781037031000,-167.0,7.237e-05,2]
[424666221,1781037031000,-120.61670155,7.478e-05,2]
[424666218,1781037031000,-150.0,7.168e-05,2]
[424666215,1781037031000,-150.0,7.029e-05,2]
[424666216,1781037031000,-93.2892842,7.098e-05,2]
[424666211,1781037031000,-150.0,6.958e-05,2]
[424666212,1781037031000,-250.0,6.974e-05,2]
[424666213,1781037031000,-58.64724402,6.988e-05,2]
[424666210,1781037031000,-250.0,6.878e-05,2]
[424666209,1781037031000,-150.0,6.798e-05,2]
[424666217,1781037031000,-56.7107158,7.098e-05,2]
[424666214,1781037031000,-97.19275598,6.988e-05,2]
[424666222,1781037031000,-250.0,7.478e-05,2]
[424666226,1781037031000,-634.56181642,8.609e-05,2]
[424666238,1781037031000,-9999.99,8.709e-05,2]
[424666235,1781037031000,-999.99,8.609e-05,2]
[424666237,1781037031000,-299.99,8.709e-05,2]
[424666236,1781037031000,-704.96,8.609e-05,2]
[424666233,1781037031000,-93163.15841703,8.609e-05,2]
[424666234,1781037031000,-9999.99,8.609e-05,2]
[424666232,1781037031000,-18954.58710174,8.609e-05,2]
[424666231,1781037031000,-9400.0,8.609e-05,2]
[424666229,1781037031000,-292.41951053,8.609e-05,2]
[424666227,1781037031000,-1052.18570853,8.609e-05,2]
[424666228,1781037031000,-3527.71759355,8.609e-05,2]
[424666225,1781037031000,-150.0,8.608e-05,2]
[424666223,1781037031000,-160.0,7.502e-05,2]
[424666230,1781037031000,-614.9540522,8.609e-05,2]
[424666224,1781037031000,-150.99,7.948e-05,2]
[424666240,1781037032000,-769.6,8.709e-05,2]
[424666255,1781037032000,-205.0,9.8e-05,2]
[424666244,1781037032000,-4139.03,8.838e-05,2]
[424666242,1781037032000,-15.0137508,8.773e-05,2]
[424666239,1781037032000,-5436.00322161,8.709e-05,2]
[424666243,1781037032000,-200.87954098,8.773e-05,2]
[424666241,1781037032000,-3794.38677839,8.709e-05,2]
[424666246,1781037032000,-339.61179475,8.875e-05,2]
[424666259,1781037032000,-157.64867446,9.899e-05,2]
[424666248,1781037032000,-250.0,8.983e-05,2]
[424666249,1781037032000,-200.0,9.037e-05,2]
[424666251,1781037032000,-2346.47,9.284e-05,2]
[424666253,1781037032000,-217.15,9.439e-05,2]
[424666257,1781037032000,-295.4725071,9.829e-05,2]
[424666261,1781037032000,-500.0,9.899e-05,2]
[424666263,1781037032000,-120.98980751,9.899e-05,2]
[424666245,1781037032000,-88.20820525,8.875e-05,2]
[424666294,1781037039000,-379.01019249,9.899e-05,2]
[424666296,1781037039000,-158.62768678,9.899e-05,2]
[424666297,1781037039000,-500.0,9.899e-05,2]
[424666295,1781037039000,-341.37231322,9.899e-05,2]
[424666299,1781037039000,-21.44735442,9.899e-05,2]
[424666298,1781037039000,-500.0,9.899e-05,2]
[424666344,1781037040000,-500.0,9.899e-05,2]
[424666342,1781037040000,-500.0,9.899e-05,2]
[424666343,1781037040000,-500.0,9.899e-05,2]
[424666348,1781037040000,-500.0,9.899e-05,2]
[424666350,1781037040000,-500.0,9.899e-05,2]
[424666349,1781037040000,-500.0,9.899e-05,2]
[424666356,1781037040000,-500.0,9.899e-05,2]
[424666359,1781037040000,-500.0,9.899e-05,2]
[424666353,1781037040000,-500.0,9.899e-05,2]
[424666352,1781037040000,-500.0,9.899e-05,2]
[424666358,1781037040000,-500.0,9.899e-05,2]
[424666357,1781037040000,-500.0,9.899e-05,2]
[424666341,1781037040000,-500.0,9.899e-05,2]
[424666351,1781037040000,-500.0,9.899e-05,2]
[424666340,1781037040000,-500.0,9.899e-05,2]
[424666355,1781037040000,-500.0,9.899e-05,2]
[424666336,1781037040000,-500.0,9.899e-05,2]
[424666327,1781037040000,-478.55264558,9.899e-05,2]
[424666334,1781037040000,-350.0,9.899e-05,2]
[424666329,1781037040000,-500.0,9.899e-05,2]
[424666332,1781037040000,-500.0,9.899e-05,2]
[424666333,1781037040000,-500.0,9.899e-05,2]
[424666335,1781037040000,-500.0,9.899e-05,2]
[424666347,1781037040000,-500.0,9.899e-05,2]
[424666330,1781037040000,-500.0,9.899e-05,2]
[424666328,1781037040000,-500.0,9.899e-05,2]
[424666345,1781037040000,-500.0,9.899e-05,2]
[424666337,1781037040000,-500.0,9.899e-05,2]
[424666346,1781037040000,-500.0,9.899e-05,2]
[424666339,1781037040000,-500.0,9.899e-05,2]
[424666338,1781037040000,-500.0,9.899e-05,2]
[424666331,1781037040000,-500.0,9.899e-05,2]
[424666354,1781037040000,-500.0,9.899e-05,2]
[424666367,1781037040000,-500.0,9.899e-05,2]
[424666360,1781037040000,-500.0,9.899e-05,2]
[424666391,1781037040000,-500.0,9.899e-05,2]
[424666393,1781037040000,-500.0,9.899e-05,2]
[424666394,1781037040000,-588037.85874458,9.9e-05,2]
[424666392,1781037040000,-450.0,9.899e-05,2]
[424666389,1781037040000,-500.0,9.899e-05,2]
[424666383,1781037040000,-500.0,9.899e-05,2]
[424666386,1781037040000,-500.0,9.899e-05,2]
[424666385,1781037040000,-500.0,9.899e-05,2]
[424666387,1781037040000,-500.0,9.899e-05,2]
[424666388,1781037040000,-500.0,9.899e-05,2]
[424666382,1781037040000,-500.0,9.899e-05,2]
[424666384,1781037040000,-500.0,9.899e-05,2]
[424666381,1781037040000,-500.0,9.899e-05,2]
[424666380,1781037040000,-500.0,9.899e-05,2]
[424666377,1781037040000,-500.0,9.899e-05,2]
[424666379,1781037040000,-500.0,9.899e-05,2]
[424666369,1781037040000,-500.0,9.899e-05,2]
[424666364,1781037040000,-500.0,9.899e-05,2]
[424666362,1781037040000,-500.0,9.899e-05,2]
[424666363,1781037040000,-500.0,9.899e-05,2]
[424666365,1781037040000,-500.0,9.899e-05,2]
[424666390,1781037040000,-500.0,9.899e-05,2]
[424666366,1781037040000,-500.0,9.899e-05,2]
[424666370,1781037040000,-500.0,9.899e-05,2]
[424666361,1781037040000,-500.0,9.899e-05,2]
[424666368,1781037040000,-500.0,9.899e-05,2]
[424666371,1781037040000,-500.0,9.899e-05,2]
[424666375,1781037040000,-294.76496491,9.899e-05,2]
[424666372,1781037040000,-500.0,9.899e-05,2]
[424666376,1781037040000,-500.0,9.899e-05,2]
[424666378,1781037040000,-500.0,9.899e-05,2]
[424666373,1781037040000,-500.0,9.899e-05,2]
[424666374,1781037040000,-500.0,9.899e-05,2]
[424666412,1781037043000,-559.74912,9.9e-05,2]
[424666418,1781037046000,-6068.32,9.9e-05,2]
[424666417,1781037046000,-1115.40994501,9.9e-05,2]
[424669106,1781037232000,211.0,0.0003,120]
[424669107,1781037254000,152.0,0.00029518,120]
[424669108,1781037305000,201.0,0.0003,120]
[424669109,1781037340000,152.0,0.0003,120]
[424669110,1781037466000,500.06,0.00030082,120]
[424669113,1781037679000,500.0,0.00029781,120]
[424669115,1781037802000,500.0,0.00029979,120]
[424669116,1781037847000,150.0,0.00030136,120]
[424669117,1781037888000,150.0,0.00011233,120]
[424669120,1781038231000,-150.0,7.372e-05,2]
[424669119,1781038231000,-150.0,7.301e-05,2]
[424669122,1781038231000,-1000.0,7.442e-05,2]
[424669124,1781038231000,-304.0,7.527e-05,2]
[424669123,1781038231000,-740.89672842,7.527e-05,2]
[424669121,1781038231000,-351.73479821,7.433e-05,2]
[424669136,1781038232000,-250.0,8.031e-05,2]
[424669140,1781038232000,-250.0,8.186e-05,2]
[424669139,1781038232000,-9999.99,8.058e-05,2]
[424669141,1781038232000,-79002.34768708,8.212e-05,2]
[424669138,1781038232000,-289.39,8.058e-05,2]
[424669137,1781038232000,-250.0,8.031e-05,2]
[424669135,1781038232000,-215.89329178,8.015e-05,2]
[424669134,1781038232000,-2392.631526,7.945e-05,2]
[424669127,1781038232000,-33.64251334,7.57e-05,2]
[424669133,1781038232000,-202.9,7.862e-05,2]
[424669130,1781038232000,-150.0,7.707e-05,2]
[424669131,1781038232000,-200.0,7.832e-05,2]
[424669128,1781038232000,-135.54748666,7.57e-05,2]
[424669129,1781038232000,-2920.73,7.655e-05,2]
[424669125,1781038232000,-1859.44327158,7.527e-05,2]
[424669126,1781038232000,-175.3,7.563e-05,2]
[424669132,1781038232000,-500.0,7.845e-05,2]
[424669143,1781038232000,-77085.99042475,8.212e-05,2]
[424669148,1781038232000,-4555.38970423,8.212e-05,2]
[424669144,1781038232000,-134510.82630908,8.212e-05,2]
[424669142,1781038232000,-62370.98146341,8.212e-05,2]
[424669163,1781038232000,-111.50099765,8.5e-05,2]
[424669159,1781038232000,-154.3254478,8.409e-05,2]
[424669162,1781038232000,-1000.0,8.42e-05,2]
[424669161,1781038232000,-186.2,8.409e-05,2]
[424669158,1781038232000,-1248.72229349,8.312e-05,2]
[424669156,1781038232000,-493.77,8.224e-05,2]
[424669157,1781038232000,-1346.51,8.293e-05,2]
[424669160,1781038232000,-186.2,8.409e-05,2]
[424669154,1781038232000,-181.18,8.224e-05,2]
[424669153,1781038232000,-2000.0,8.219e-05,2]
[424669150,1781038232000,-182.6871772,8.219e-05,2]
[424669151,1781038232000,-196.34,8.219e-05,2]
[424669152,1781038232000,-4108.65,8.219e-05,2]
[424669145,1781038232000,-1233.7542,8.212e-05,2]
[424669146,1781038232000,-3563.51531145,8.212e-05,2]
[424669155,1781038232000,-150.99,8.224e-05,2]
[424669198,1781038240000,-500.0,9.809e-05,2]
[424669193,1781038240000,-500.0,9.809e-05,2]
[424669189,1781038240000,-256.43682364,9.809e-05,2]
[424669190,1781038240000,-500.0,9.809e-05,2]
[424669192,1781038240000,-151.32401963,9.809e-05,2]
[424669195,1781038240000,-500.0,9.809e-05,2]
[424669194,1781038240000,-175.16519384,9.809e-05,2]
[424669196,1781038240000,-276.71394675,9.809e-05,2]
[424669202,1781038240000,-500.0,9.809e-05,2]
[424669199,1781038240000,-500.0,9.809e-05,2]
[424669200,1781038240000,-500.0,9.809e-05,2]
[424669201,1781038240000,-500.0,9.809e-05,2]
[424669205,1781038240000,-500.0,9.809e-05,2]
[424669204,1781038240000,-500.0,9.809e-05,2]
[424669206,1781038240000,-500.0,9.809e-05,2]
[424669203,1781038240000,-500.0,9.809e-05,2]
[424669191,1781038240000,-599.67617468,9.809e-05,2]
[424669207,1781038240000,-500.0,9.809e-05,2]
[424669197,1781038240000,-500.0,9.809e-05,2]
[424669188,1781038240000,-500.0,9.809e-05,2]
[424669182,1781038240000,-1346.51,9.329e-05,2]
[424669187,1781038240000,-2000.0,9.8e-05,2]
[424669166,1781038240000,-657.87343808,8.5e-05,2]
[424669167,1781038240000,-596890.31874707,8.5e-05,2]
[424669171,1781038240000,-162.06744247,8.579e-05,2]
[424669169,1781038240000,-99357.5193,8.508e-05,2]
[424669170,1781038240000,-2286.26,8.512e-05,2]
[424669168,1781038240000,-4180.1811,8.508e-05,2]
[424669172,1781038240000,-151.0,8.606e-05,2]
[424669173,1781038240000,-151.0,8.606e-05,2]
[424669175,1781038240000,-196.34,8.676e-05,2]
[424669176,1781038240000,-169.19,8.82e-05,2]
[424669174,1781038240000,-150.0,8.608e-05,2]
[424669177,1781038240000,-198.02888251,9.1e-05,2]
[424669179,1781038240000,-1394.06504464,9.1e-05,2]
[424669210,1781038240000,-500.0,9.809e-05,2]
[424669180,1781038240000,-196.34,9.132e-05,2]
[424669181,1781038240000,-2000.0,9.247e-05,2]
[424669184,1781038240000,-196.34,9.589e-05,2]
[424669183,1781038240000,-181.18,9.581e-05,2]
[424669186,1781038240000,-28963.3438,9.8e-05,2]
[424669185,1781038240000,-328.04804325,9.648e-05,2]
[424669208,1781038240000,-500.0,9.809e-05,2]
[424669178,1781038240000,-184.34189362,9.1e-05,2]
[424669212,1781038240000,-500.0,9.809e-05,2]
[424669258,1781038240000,-500.0,9.809e-05,2]
[424669254,1781038240000,-500.0,9.809e-05,2]
[424669256,1781038240000,-500.0,9.809e-05,2]
[424669260,1781038240000,-500.0,9.809e-05,2]
[424669262,1781038240000,-500.0,9.809e-05,2]
[424669268,1781038240000,-2346.13757578,9.809e-05,2]
[424669270,1781038240000,-2346.13757578,9.809e-05,2]
[424669269,1781038240000,-2346.13757578,9.809e-05,2]
[424669271,1781038240000,-2346.13757578,9.809e-05,2]
[424669272,1781038240000,-2346.13757578,9.809e-05,2]
[424669273,1781038240000,-2346.13757578,9.809e-05,2]
[424669275,1781038240000,-2346.13757578,9.809e-05,2]
[424669280,1781038240000,-2346.13757578,9.809e-05,2]
[424669277,1781038240000,-2346.13757578,9.809e-05,2]
[424669274,1781038240000,-2346.13757578,9.809e-05,2]
[424669279,1781038240000,-2346.13757578,9.809e-05,2]
[424669278,1781038240000,-2346.13757578,9.809e-05,2]
[424669281,1781038240000,-2346.13757578,9.809e-05,2]
[424669209,1781038240000,-500.0,9.809e-05,2]
[424669265,1781038240000,-500.0,9.809e-05,2]
[424669267,1781038240000,-500.0,9.809e-05,2]
[424669276,1781038240000,-2346.13757578,9.809e-05,2]
[424669251,1781038240000,-500.0,9.809e-05,2]
[424669252,1781038240000,-500.0,9.809e-05,2]
[424669211,1781038240000,-500.0,9.809e-05,2]
[424669213,1781038240000,-500.0,9.809e-05,2]
[424669214,1781038240000,-500.0,9.809e-05,2]
[424669217,1781038240000,-500.0,9.809e-05,2]
[424669220,1781038240000,-500.0,9.809e-05,2]
[424669222,1781038240000,-500.0,9.809e-05,2]
[424669224,1781038240000,-500.0,9.809e-05,2]
[424669226,1781038240000,-500.0,9.809e-05,2]
[424669215,1781038240000,-500.0,9.809e-05,2]
[424669239,1781038240000,-500.0,9.809e-05,2]
[424669248,1781038240000,-500.0,9.809e-05,2]
[424669229,1781038240000,-500.0,9.809e-05,2]
[424669244,1781038240000,-500.0,9.809e-05,2]
[424669241,1781038240000,-500.0,9.809e-05,2]
[424669246,1781038240000,-500.0,9.809e-05,2]
[424669237,1781038240000,-500.0,9.809e-05,2]
[424669231,1781038240000,-500.0,9.809e-05,2]
[424669232,1781038240000,-500.0,9.809e-05,2]
[424669235,1781038240000,-500.0,9.809e-05,2]
[424669326,1781038241000,-500.0,9.898e-05,2]
[424669327,1781038241000,-514.30782019,9.898e-05,2]
[424669323,1781038241000,-500.0,9.898e-05,2]
[424669324,1781038241000,-500.0,9.898e-05,2]
[424669322,1781038241000,-500.0,9.898e-05,2]
[424669321,1781038241000,-500.0,9.898e-05,2]
[424669325,1781038241000,-183.77543273,9.898e-05,2]
[424669319,1781038241000,-491.51226608,9.898e-05,2]
[424669317,1781038241000,-500.0,9.898e-05,2]
[424669315,1781038241000,-490.42552075,9.809e-05,2]
[424669314,1781038241000,-4306.28317387,9.809e-05,2]
[424669313,1781038241000,-500.0,9.809e-05,2]
[424669320,1781038241000,-500.0,9.898e-05,2]
[424669330,1781038241000,-500.0,9.898e-05,2]
[424669338,1781038241000,-500.0,9.898e-05,2]
[424669332,1781038241000,-500.0,9.898e-05,2]
[424669328,1781038241000,-500.0,9.898e-05,2]
[424669331,1781038241000,-500.0,9.898e-05,2]
[424669334,1781038241000,-500.0,9.898e-05,2]
[424669333,1781038241000,-500.0,9.898e-05,2]
[424669335,1781038241000,-500.0,9.898e-05,2]
[424669337,1781038241000,-500.0,9.898e-05,2]
[424669336,1781038241000,-500.0,9.898e-05,2]
[424669343,1781038241000,-500.0,9.898e-05,2]
[424669341,1781038241000,-500.0,9.898e-05,2]
[424669339,1781038241000,-500.0,9.898e-05,2]
[424669344,1781038241000,-500.0,9.898e-05,2]
[424669318,1781038241000,-232.82938967,9.898e-05,2]
[424669329,1781038241000,-234.69923578,9.898e-05,2]
[424669316,1781038241000,-237316.51759758,9.81e-05,2]
[424669288,1781038241000,-2346.13757578,9.809e-05,2]
[424669312,1781038241000,-2401.25853369,9.809e-05,2]
[424669282,1781038241000,-2346.13757578,9.809e-05,2]
[424669283,1781038241000,-2346.13757578,9.809e-05,2]
[424669286,1781038241000,-2346.13757578,9.809e-05,2]
[424669285,1781038241000,-2346.13757578,9.809e-05,2]
[424669287,1781038241000,-2346.13757578,9.809e-05,2]
[424669289,1781038241000,-2346.13757578,9.809e-05,2]
[424669293,1781038241000,-2346.13757578,9.809e-05,2]
[424669292,1781038241000,-2346.13757578,9.809e-05,2]
[424669342,1781038241000,-500.0,9.898e-05,2]
[424669290,1781038241000,-2346.13757578,9.809e-05,2]
[424669291,1781038241000,-2346.13757578,9.809e-05,2]
[424669294,1781038241000,-2346.13757578,9.809e-05,2]
[424669295,1781038241000,-2346.13757578,9.809e-05,2]
[424669311,1781038241000,-2401.25853369,9.809e-05,2]
[424669296,1781038241000,-2346.13757578,9.809e-05,2]
[424669298,1781038241000,-2346.13757578,9.809e-05,2]
[424669300,1781038241000,-500.0,9.809e-05,2]
[424669305,1781038241000,-2401.25853369,9.809e-05,2]
[424669299,1781038241000,-2346.13757578,9.809e-05,2]
[424669306,1781038241000,-2401.25853369,9.809e-05,2]
[424669301,1781038241000,-2401.25853369,9.809e-05,2]
[424669303,1781038241000,-2401.25853369,9.809e-05,2]
[424669302,1781038241000,-2401.25853369,9.809e-05,2]
[424669304,1781038241000,-2401.25853369,9.809e-05,2]
[424669307,1781038241000,-2401.25853369,9.809e-05,2]
[424669309,1781038241000,-2401.25853369,9.809e-05,2]
[424669308,1781038241000,-2401.25853369,9.809e-05,2]
[424669310,1781038241000,-2401.25853369,9.809e-05,2]
[424669297,1781038241000,-2346.13757578,9.809e-05,2]
[424669340,1781038241000,-500.0,9.898e-05,2]
[424669284,1781038241000,-2346.13757578,9.809e-05,2]
[424669347,1781038241000,-500.0,9.898e-05,2]
[424669383,1781038241000,-1346.51,0.00010366,2]
[424669379,1781038241000,-2000.0,0.00010274,2]
[424669380,1781038241000,-3714.43,0.00010278,2]
[424669381,1781038241000,-195398.93611564,0.000103,2]
[424669384,1781038241000,-1985.10888299,0.0001043,2]
[424669387,1781038241000,-1985.10888299,0.0001052,2]
[424669386,1781038241000,-196.34,0.00010502,2]
[424669388,1781038241000,-3714.43,0.00010529,2]
[424669385,1781038241000,-1985.10888299,0.00010478,2]
[424669389,1781038241000,-166.66,0.00010546,2]
[424669390,1781038241000,-1985.10888299,0.00010556,2]
[424669396,1781038241000,-271.76580193,0.000107,2]
[424669393,1781038241000,-1985.10888299,0.00010647,2]
[424669392,1781038241000,-1985.10888299,0.00010619,2]
[424669394,1781038241000,-1985.10888299,0.00010673,2]
[424669395,1781038241000,-1985.10888299,0.00010698,2]
[424669391,1781038241000,-1985.10888299,0.00010589,2]
[424669397,1781038241000,-1985.10888299,0.00010722,2]
[424669398,1781038241000,-784.767945,0.00010739,2]
[424669400,1781038241000,-1985.10888299,0.00010744,2]
[424669399,1781038241000,-1321.707782,0.00010739,2]
[424669401,1781038241000,-2046.239289,0.00010746,2]
[424669403,1781038241000,-3714.43,0.00010779,2]
[424669402,1781038241000,-1985.10888299,0.00010766,2]